Workbook

Sheet About
A1: XIMEA Camera performance caluclator
A2: Version 2018-02-09
A4: This document contains multiple calculators for different sensors. Each is located in different sheet.
A6: Usage:
A7: 1. Enable macros (if you see yellow bar on the top, the macros are probably disabled).
A8: 2. Activate the sheet depending on sensor:
B9: CMV12000 | C9: CMV20000 | D9: CMV50000 | E9: IMX287 | F9: IMX273 | G9: IMX174 | H9: IMX252 | I9: IMX250 | J9: IMX255 | K9: IMX253 | L9: GSENSE2020
A10: 3. Fill settings (orange)
A11: 4. Use results (green)

Sheet CMV12000
G1: Note
A2: Camera Model | B2: CB120 | G2: CB120xG-CM has PCIe x4 Gen2 interface (1750MB/s); CB120xG-CM-X8G3 with PCIe x8 Gen3 interface (7000MB/s)
A3: Setting | B3: Value | C3: Units | D3: min | E3: max | F3: xiApi parameter | G3: Note
A4: Sensor Readout Frequency | B4: 327 | C4: [MHz] | D4: 120 | E4: 327 | G4: Data Rate of Sensor image data output; Note: CB120 camera implementation has 480MHz limit @8bit mode
A5: Sensor Bit Depth | B5: 8 | C5: [count] | D5: 8 | E5: 12 | F5: XI_PRM_SENSOR_DATA_BIT_DEPTH
A6: Acquisition Mode | B6: Normal | C6: [count]
A7: Channel Count per Side | B7: 16 | C7: [count] | D7: 16 | E7: 16 | F7: XI_PRM_SENSOR_OUTPUT_CHANNEL_COUNT | G7: CB120 Camera Model supports only 16 Channels per side; CB120-X8G3 Camera Model supports only 32 Channels per side
A8: ROI Width | B8: 4096 | C8: [count] | D8: 16 | E8: 4096 | F8: XI_PRM_WIDTH | G8: ROI in X direction decreases average transport bandwidth needed to transfer one frame (the whole line is read from sensor but only ROI part is sent)
A9: ROI Height | B9: 3072 | C9: [count] | D9: 2 | E9: 3072 | F9: XI_PRM_HEIGHT | G9: ROI in Y direction decreases frame readout time (decreases number of lines that need to be read out before going to next frame)
A10: Exp time reg | B10: 1 | C10: [count] | D10: 1 | E10: 65535 | G10: See the resulting Actual Exposure Time in [us] below (depends on the Exp_Time, FOT and Clk_freq)
A11: Exp time | B11: 28.3058104 | C11: [us] | D11: =((1-1)*(G22+1)+(34*MOD(G21,256))+1)*G17*B5/1000 -> 28.3058104 | E11: =((65535-1)*(G22+1)+(34*MOD(G21,256))+1)*G17*B5/1000 -> 413674.104 | F11: XI_PRM_EXPOSURE
A12: Transport Bit Depth | B12: 8 | C12: [count] | D12: 8 | E12: 16 | F12: XI_PRM_OUTPUT_DATA_BIT_DEPTH
A13: Troughput Limit | B13: 1300 | C13: [MB/s] | D13: =(B8*B9*B12/8/1000000*(1/(((INT(G21/256)+2)*((G22+1)*B5/(D4*1000000)))+(((G22+1)*B5/(D4*1000000))*G25/2))))+10 -> 483.1983513 | E13: 2000 | F13: XI_PRM_LIMIT_BANDWIDTH | G13: Adjusts Sensor Readout Frequency
A15: Results | K15: Register Presets
A16: Frame Transfer | F16: Calculations | K16: Channel Count | M16: 32 | N16: 16 | O16: 8 | P16: 4 | Q16: 2 | R16: 1
A17: Pixel Count | B17: =B9*B8/1000000 -> 12.582912 | C17: [Mpix] | F17: clk_per | G17: =1000/B4 -> 3.058103976 | H17: [ns] | J17: 8bit | K17: Normal | L17: reg82 | M17: 3618 | N17: 2082 | O17: 1058 | P17: 546 | Q17: 290 | R17: 290
A18: Image Size | B18: =B17*B12/8 -> 12.582912 | C18: [MBytes] | F18: channel count log | G18: =LOG(B7,2) -> 4 | H18: [count] | L18: reg85 | M18: 143 | N18: 257 | O18: 515 | P18: 1031 | Q18: 2063 | R18: 4127
A19: Frame Time | B19: =MAX(G26,B25/1000)+G23/1000 -> 9.758238532 | C19: [ms] | F19: mode number | G19: =ISNUMBER(FIND(B6,"Normal"))*1+ISNUMBER(FIND(B6,"Skipping 2x2"))*2+ISNUMBER(FIND(B6,"Binning 2x2"))*3 -> 1 | H19: [count] | K19: Subsample 2x2 | L19: reg82 | M19: 2338 | N19: 2082 | O19: 1058 | P19: 546 | Q19: 290 | R19: 290
A20: Max FPS | B20: =1000/B19 -> 102.4775114 | C20: [count] | F20: bit depth number | G20: =(B5-8)/2 -> 0 | H20: [count] | L20: reg85 | M20: 239 | N20: 257 | O20: 515 | P20: 1031 | Q20: 2063 | R20: 4127
A21: Average Transfer Speed | B21: =B18/B19*1000 -> 1289.465507 | C21: [MB/s] | F21: reg 82 | G21: =INDIRECT(ADDRESS(17+2*(G19-1)+6*G20,13+5-G18)) -> 2082 | H21: [count] | K21: Binning 2x2 | L21: reg82 | M21: 802 | N21: 802 | O21: 802 | P21: 546 | Q21: 290 | R21: 290
F22: reg 85 | G22: =INDIRECT(ADDRESS(18+2*(G19-1)+6*G20,13+5-G18)) -> 257 | H22: [count] | L22: reg85 | M22: 767 | N22: 767 | O22: 767 | P22: 1031 | Q22: 2063 | R22: 4127
A23: Exposure times | F23: FOT | G23: =(INT(G21/256)+2)*G24 -> 63.11926606 | H23: [us] | J23: 10bit | K23: Normal | L23: reg82 | M23: 3099 | N23: 1563 | O23: 795 | P23: 539 | Q23: 283 | R23: 283
A24: Min Exposure Time | B24: =D11 -> 28.3058104 | C24: [us] | F24: Line Time | G24: =(G22+1)*G17*B5/1000 -> 6.311926606 | H24: [us] | L24: reg85 | M24: 128 | N24: 257 | O24: 515 | P24: 1031 | Q24: 2063 | R24: 4127
A25: Actual Exposure Time | B25: =((B10-1)*(G22+1)+(34*MOD(G21,256))+1)*G17*B5/1000 -> 28.3058104 | C25: [us] | F25: Readout lines | G25: 3072 | H25: [count] | K25: Subsample 2x2 | L25: reg82 | M25: 2843 | N25: 1563 | O25: 795 | P25: 539 | Q25: 283 | R25: 283
F26: Readout time | G26: =G24*G25/2/1000 -> 9.695119266 | H26: [ms] | L26: reg85 | M26: 143 | N26: 257 | O26: 515 | P26: 1031 | Q26: 2063 | R26: 4127
A27: Transport | F27: Interface max | G27: 1300 | H27: [MB/s] | K27: Binning 2x2 | L27: reg82 | M27: 798 | N27: 798 | O27: 798 | P27: 542 | Q27: 286 | R27: 286
A28: Link Throughput | B28: =B18/G26*1000 -> 1297.860465 | C28: [MB/s] | D28: =IF((B28>G27), "Throughput is higher than camera family data interface capability", "") ->  | L28: reg85 | M28: 575 | N28: 575 | O28: 575 | P28: 1031 | Q28: 2063 | R28: 4127
D29: =IF((B28>G27), "Interface throughput maximum may vary depending on PCIe TLP size of the system", "") ->  | J29: 12bit | K29: Normal | L29: reg82 | M29: 1822 | N29: 1822 | O29: 1054 | P29: 542 | Q29: 286 | R29: 286
L30: reg85 | M30: 244 | N30: 257 | O30: 515 | P30: 1031 | Q30: 2063 | R30: 4127
K31: Subsample 2x2 | L31: reg82 | M31: 2078 | N31: 3102 | O31: 1054 | P31: 542 | Q31: 286 | R31: 286
L32: reg85 | M32: 239 | N32: 257 | O32: 515 | P32: 1031 | Q32: 2063 | R32: 4127
K33: Binning 2x2 | L33: reg82 | M33: 1054 | N33: 1054 | O33: 1054 | P33: 542 | Q33: 286 | R33: 286
L34: reg85 | M34: 479 | N34: 479 | O34: 515 | P34: 1031 | Q34: 2063 | R34: 4127

Sheet CMV20000
G1: Note
A2: Camera Model | B2: CB200
A3: Setting | B3: Value | C3: Units | D3: min | E3: max | F3: xiApi parameter | G3: Note
A4: Sensor Readout Frequency | B4: 480 | C4: [MHz] | D4: 120 | E4: 480 | G4: Data Rate of Sensor image data output
A5: Sensor Bit Depth | B5: 12 | C5: [count] | D5: 12 | E5: 12 | F5: XI_PRM_SENSOR_DATA_BIT_DEPTH | G5: CB200 Camera Model supports only 12 Channels
A6: ROI Width | B6: 5120 | C6: [count] | D6: 16 | E6: 5120 | F6: XI_PRM_WIDTH | G6: ROI in X direction decreases average transport bandwidth needed to transfer one frame (the whole line is read from sensor but only ROI part is sent)
A7: ROI Height | B7: 3840 | C7: [count] | D7: 2 | E7: 3840 | F7: XI_PRM_HEIGHT | G7: ROI in Y direction decreases frame readout time (decreases number of lines that need to be read out before going to next frame)
A8: Exp time reg | B8: 1 | C8: [count] | D8: 1 | E8: 65535 | G8: Actual Exposure Time depends on the Exp_Time, FOT and Clk_freq
A9: Exp time | B9: 94.025 | C9: [us] | D9: =((D8-1)*641+1+47*80)*G16/1000 -> 94.025 | E9: =((E8-1)*641+1+47*80)*G16/1000 -> 1050276.375 | F9: XI_PRM_EXPOSURE
A10: Transport Bit Depth | B10: 8 | C10: [count] | D10: 8 | E10: 16 | F10: XI_PRM_OUTPUT_DATA_BIT_DEPTH
A11: Troughput Limit | B11: 1300 | C11: [MB/s] | D11: =(B6*B7*B10/8) / ((641 * (1/((D4 / 12) * 1000000)) / 2) * B7) / 1000000 -> 159.75039 | E11: 2000 | F11: XI_PRM_LIMIT_BANDWIDTH | G11: Adjusts Sensor Readout Frequency
A13: Results
A14: Frame Transfer | F14: Calculations
A15: Pixel Count | B15: =B7*B6/1000000 -> 19.6608 | C15: [Mpix] | F15: master clock | G15: =B4/12 -> 40 | H15: [MHz]
A16: Image Size | B16: =B6*B7/8*B10/1000000 -> 19.6608 | C16: [MBytes] | F16: master clk_per | G16: =1000/G15 -> 25 | H16: [ns]
A17: Frame Time | B17: =MAX(G18,B23/1000)+G17/1000 -> 30.9603 | C17: [ms] | F17: FOT | G17: =((80*80+80/8)+2*641)*G16/1000 -> 192.3 | H17: [us]
A18: Max FPS | B18: =1000/B17 -> 32.29942862 | C18: [count] | F18: Readout Time | G18: =641*G16*B7/2/1000000 -> 30.768 | H18: [ms]
A19: Average Transfer Speed | B19: =B16/B17*1000 -> 635.0326063 | C19: [MB/s] | F19: Interface max | G19: 1300 | H19: [MB/s]
A21: Exposure times
A22: Min Exposure Time | B22: =(1+47*80)*G16/1000 -> 94.025 | C22: [us]
A23: Actual Exposure Time | B23: =((B8-1)*641+1+47*80)*G16/1000 -> 94.025 | C23: [us]
A25: Transport
A26: Link Throughput | B26: =B16/G18*1000 -> 639.0015601 | C26: [MB/s] | D26: =IF((B26>G19), "Throughput is higher than camera family data interface capability", "") -> 
D27: =IF((B26>G19), "Interface throughput maximum may vary depending on PCIe TLP size of the system", "") -> 

Sheet CMV50000
G1: Note
A2: Camera Model | B2: CB500CG-CM | G2: xiB Family, 48 MPix, Color model
A3: Setting | B3: Value | C3: Units | D3: min | E3: max | F3: xiApi parameter | G3: Note
A4: Sensor Bit Depth | B4: 12 | C4: [count] | D4: 12 | E4: 12 | F4: XI_PRM_SENSOR_DATA_BIT_DEPTH | G4: CMV50000 supports only 12 bit depth
A5: Binning | B5: 1x1 | F5: XI_PRM_BINNING_VERTICAL; XI_PRM_BINNING_HORIZONTAL | G5: Binning: vertical x horizontal
A6: Decimation | B6: 1x1 | F6: XI_PRM_DECIMATION_VERTICAL; XI_PRM_DECIMATION_HORIZONTAL | G6: Decimation: vertical x horizontal
A7: Channel Count | B7: 22 | C7: [count] | D7: 22 | E7: 22 | F7: XI_PRM_SENSOR_OUTPUT_CHANNEL_COUNT
A8: ROI Width | B8: 7920 | C8: [count] | D8: 8 | E8: 7920 | F8: XI_PRM_WIDTH | G8: ROI in X direction decreases average transport bandwidth needed to transfer one frame (the whole line is read from sensor but only ROI part is sent)
A9: ROI Height | B9: 6004 | C9: [count] | D9: 2 | E9: 6004 | F9: XI_PRM_HEIGHT | G9: ROI in Y direction decreases frame readout time (decreases number of lines that need to be read out before going to next frame)
A10: Exp Time | B10: 100 | C10: [us] | D10: 100 | E10: 17000000 | F10: XI_PRM_EXPOSURE
A11: Transport Bit Depth | B11: 8 | C11: [count] | D11: 8 | E11: 16 | F11: XI_PRM_OUTPUT_DATA_BIT_DEPTH
A12: Troughput Limit | B12: 1300 | C12: [MB/s] | D12: 43.43709943 | E12: 2000 | F12: XI_PRM_LIMIT_BANDWIDTH | G12: Adjusts Line Period
A14: Results
A15: Frame Transfer | F15: Calculations
A16: Pixel Count | B16: =B9*B8/1000000 -> 47.55168 | C16: [Mpix]
A17: Image Size | B17: =B8*B9/8*B11/1000000 -> 47.55168 | C17: [MBytes]
A18: Line Period | B18: 6.092307692 | C18: [us]
A19: Frame Time | B19: =MAX(G22,B25/1000)+G19/1000 -> 36.83142317 | C19: [ms] | F19: glob | G19: =150*69*12/830 -> 149.6385542 | H19: [us]
A20: Max FPS | B20: =1000/B19 -> 27.15072929 | C20: [count] | F20: Line Period min | G20: =(1+ISNUMBER(FIND("2x2",B5,1)))*370*12/830 -> 5.34939759 | H20: [us]
A21: Average Transfer Speed | B21: =B17/B19*1000 -> 1291.062791 | C21: [MB/s] | F21: Line Period max | G21: =(1+ISNUMBER(FIND("2x2",B5,1)))*16383*12/830 -> 236.8626506 | H21: [us]
F22: Readout Time | G22: =B18*(B9+6*2+5)/1000 -> 36.68178462 | H22: [ms]
A23: Exposure times | F23: Interface max | G23: 1300 | H23: [MB/s]
A24: Min Exposure Time | B24: =D10 -> 100 | C24: [us]
A25: Actual Exposure Time | B25: =B10 -> 100 | C25: [us]
A27: Transport
A28: Link Throughput | B28: =B16*B11/8/G22*1000 -> 1296.329513 | C28: [MB/s] | D28: =IF((B28>G23), "Throughput is higher than camera family data interface capability", "") -> 

Sheet IMX287
G1: Note
A2: Camera Model | B2: MC004CG-SY | G2: xiC Family, 0.4 MPix, Color model
A3: Setting | B3: Value | C3: Units | D3: min | E3: max | F3: xiApi parameter | G3: Note
A4: Sensor Bit Depth | B4: 8 | C4: [count] | D4: 8 | E4: 12 | F4: XI_PRM_SENSOR_DATA_BIT_DEPTH | G4: IMX287 supports 8; 10 and 12 bit depth
A5: Binning | B5: 1x1 | G5: IMX287 does not support binning
A6: Decimation | B6: 1x1 | G6: IMX287 does not support decimation
A7: Channel Count | B7: 4 | C7: [count] | D7: 4 | E7: 4 | F7: XI_PRM_SENSOR_OUTPUT_CHANNEL_COUNT | G7: IMX287 supports 4 channels
A8: ROI Width | B8: 728 | C8: [count] | D8: 8 | E8: 728 | F8: XI_PRM_WIDTH | G8: ROI in X direction decreases average transport bandwidth needed to transfer one frame (the whole line is read from sensor but only ROI part is sent)
A9: ROI Height | B9: 544 | C9: [count] | D9: 4 | E9: 544 | F9: XI_PRM_HEIGHT | G9: ROI in Y direction decreases frame readout time (decreases number of lines that need to be read out before going to next frame)
A10: Exp Time | B10: 17 | C10: [us] | D10: =B24 -> 17 | E10: 30000000 | F10: XI_PRM_EXPOSURE
A11: Transport Bit Depth | B11: 8 | C11: [count] | D11: 8 | E11: 16 | F11: XI_PRM_OUTPUT_DATA_BIT_DEPTH
A12: Troughput Limit | B12: 390 | C12: [MB/s] | D12: =(10000000+(9375000/(65535*B9))*B9*B8*B11)/1000000 -> 10.8331426 | E12: 1000 | F12: XI_PRM_LIMIT_BANDWIDTH | G12: Adjusts Line Period (it affects the granularity of exposure time)
A14: Results
A15: Frame Transfer | F15: Calculations | K15: Register Presets
A16: Pixel Count | B16: =B9*B8/1000000 -> 0.396032 | C16: [Mpix] | F16: bit depth number | G16: =(B4-6)/2 -> 1 | H16: [count] | K16: Channel Count | M16: 4
A17: Image Size | B17: =B8*B9/8*B11/1000000 -> 0.396032 | C17: [MBytes] | F17: channel count log | G17: =LOG(B7,2) -> 2 | H17: [count] | J17: 8bit | K17: Normal | L17: HMAX | M17: 242 | N17: 432
A18: Line Period | B18: 3.226666667 | C18: [us] | F18: HMAX reg min | G18: =INDIRECT(ADDRESS((G16*2+15)+ISNUMBER(FIND("x2",B6, 2))+ISNUMBER(FIND("x2",B5, 2)), 15-G17)) -> 242 | H18: [count]
A19: Frame Time | B19: =G20*B18/1000 -> 1.87792 | C19: [ms] | F19: H period min | G19: =(1/75000000)*1000000*G18 -> 3.226666667 | H19: [us] | J19: 10bit | K19: Normal | L19: HMAX | M19: 290 | N19: 530
A20: Max FPS | B20: =1000/B19 -> 532.504047 | C20: [count] | F20: VMAX | G20: =MAX(ROUND((((B10-13.73)/B18)+13), 0), B9+38) -> 582 | H20: [count]
A21: Average Transfer Speed | B21: =B17/B19*1000 -> 210.8886428 | C21: [MB/s] | F21: FOT | G21: =10*B18 -> 32.26666667 | H21: [us] | J21: 12bit | K21: Normal | L21: HMAX | M21: 396 | N21: 624
F22: Readout Time | G22: =B18*B9/1000 -> 1.755306667 | H22: [ms]
A23: Exposure times | F23: Interface max | G23: 390 | H23: [MB/s]
A24: Min Exposure Time | B24: =ROUND(B18+13.73, 0) -> 17 | C24: [us]
A25: Actual Exposure Time | B25: =((ROUND((B10-13.73)/B18,0)*B18)+13.73) -> 16.95666667 | C25: [us]
A27: Transport
A28: Link Throughput | B28: =B16*B11/8/G22*1000 -> 225.6198347 | C28: [MB/s] | D28: =IF((B28>G23), "Throughput is higher than camera family data interface capability", "") -> 

Sheet IMX273
G1: Note
A2: Camera Model | B2: MC016CG-SY | G2: xiC Family, 1.6 MPix, Color model
A3: Setting | B3: Value | C3: Units | D3: min | E3: max | F3: xiApi parameter | G3: Note
A4: Sensor Bit Depth | B4: 8 | C4: [count] | D4: 8 | E4: 12 | F4: XI_PRM_SENSOR_DATA_BIT_DEPTH | G4: IMX273 supports 8; 10 and 12 bit depth
A5: Binning | B5: 1x1 | F5: XI_PRM_BINNING_VERTICAL; XI_PRM_BINNING_HORIZONTAL | G5: Only Mono IMX273 supports Binning
A6: Decimation | B6: 1x1 | F6: XI_PRM_DECIMATION_VERTICAL; XI_PRM_DECIMATION_HORIZONTAL | G6: Binning/Decimation: vertical x horizontal
A7: Channel Count | B7: 8 | C7: [count] | D7: 4 | E7: 8 | F7: XI_PRM_SENSOR_OUTPUT_CHANNEL_COUNT | G7: IMX273 supports 4; or 8 channels
A8: ROI Width | B8: 1456 | C8: [count] | D8: 8 | E8: 1456 | F8: XI_PRM_WIDTH | G8: ROI in X direction decreases average transport bandwidth needed to transfer one frame (the whole line is read from sensor but only ROI part is sent)
A9: ROI Height | B9: 1088 | C9: [count] | D9: 4 | E9: 1088 | F9: XI_PRM_HEIGHT | G9: ROI in Y direction decreases frame readout time (decreases number of lines that need to be read out before going to next frame)
A10: Exp Time | B10: 19 | C10: [us] | D10: =B24 -> 17 | E10: 30000000 | F10: XI_PRM_EXPOSURE
A11: Transport Bit Depth | B11: 8 | C11: [count] | D11: 8 | E11: 16 | F11: XI_PRM_OUTPUT_DATA_BIT_DEPTH
A12: Troughput Limit | B12: 390 | C12: [MB/s] | D12: =(10000000+(9375000/(65535*B9))*B9*B8*B11)/1000000 -> 11.66628519 | E12: 1000 | F12: XI_PRM_LIMIT_BANDWIDTH | G12: Adjusts Line Period (it affects the granularity of exposure time)
A14: Results
A15: Frame Transfer | F15: Calculations | K15: Register Presets
A16: Pixel Count | B16: =B9*B8/1000000 -> 1.584128 | C16: [Mpix] | F16: bit depth number | G16: =(B4-6)/2 -> 1 | H16: [count] | K16: Channel Count | M16: 8 | N16: 4
A17: Image Size | B17: =B8*B9/8*B11/1000000 -> 1.584128 | C17: [MBytes] | F17: channel count log | G17: =LOG(B7,2) -> 3 | H17: [count] | J17: 8bit | K17: Normal | L17: HMAX | M17: 238 | N17: 424 | O17: 796
A18: Line Period | B18: 3.733333333 | C18: [us] | F18: HMAX reg min | G18: =INDIRECT(ADDRESS((G16*2+15)+ISNUMBER(FIND("x2",B6, 2))+ISNUMBER(FIND("x2",B5, 2)), 16-G17)) -> 238 | H18: [count] | K18: Decimation Xx2 | L18: HMAX | M18: 218 | N18: 242 | O18: 432
A19: Frame Time | B19: =G20*B18/1000 -> 4.203733333 | C19: [ms] | F19: H period min | G19: =(1/75000000)*1000000*G18 -> 3.173333333 | H19: [us] | J19: 10bit | K19: Normal | L19: HMAX | M19: 290 | N19: 520 | O19: 990
A20: Max FPS | B20: =1000/B19 -> 237.8837858 | C20: [count] | F20: VMAX | G20: =MAX(ROUND((((B10-13.73)/B18)+13), 0), B9+38) -> 1126 | H20: [count] | K20: Decimation Xx2 | L20: HMAX | M20: 250 | N20: 290 | O20: 530
A21: Average Transfer Speed | B21: =B17/B19*1000 -> 376.8383659 | C21: [MB/s] | F21: FOT | G21: =10*B18 -> 37.33333333 | H21: [us] | J21: 12bit | K21: Normal | L21: HMAX | M21: 396 | N21: 612 | O21: 1170
F22: Readout Time | G22: =B18*B9/1000 -> 4.061866667 | H22: [ms] | K22: Decimation Xx2 | L22: HMAX | M22: 396 | N22: 396 | O22: 624
A23: Exposure times | F23: Interface max | G23: 390 | H23: [MB/s]
A24: Min Exposure Time | B24: =ROUND(B18+13.73, 0) -> 17 | C24: [us]
A25: Actual Exposure Time | B25: =((ROUND((B10-13.73)/B18,0)*B18)+13.73) -> 17.46333333 | C25: [us]
A27: Transport
A28: Link Throughput | B28: =B16*B11/8/G22*1000 -> 390 | C28: [MB/s] | D28: =IF((B28>G23), "Throughput is higher than camera family data interface capability", "") -> 

Sheet IMX174
G1: Note
A2: Camera Model | B2: MC023CG-SY | G2: xiC Family, 2.3 MPix, Color model
A3: Setting | B3: Value | C3: Units | D3: min | E3: max | F3: xiApi parameter | G3: Note
A4: Sensor Bit Depth | B4: 10 | C4: [count] | D4: 10 | E4: 12 | F4: XI_PRM_SENSOR_DATA_BIT_DEPTH | G4: IMX174 supports 10 and 12 bit depth
A5: Decimation | B5: 1x1 | F5: XI_PRM_DECIMATION_VERTICAL; XI_PRM_DECIMATION_HORIZONTAL | G5: Decimation: vertical x horizontal; Only mono camera supports decimation
A6: Channel Count | B6: 8 | C6: [count] | D6: 2 | E6: 8 | F6: XI_PRM_SENSOR_OUTPUT_CHANNEL_COUNT | G6: IMX174 supports 2; 4; or 8 channels
A7: ROI Width | B7: 1936 | C7: [count] | D7: 8 | E7: 1936 | F7: XI_PRM_WIDTH | G7: ROI in X direction decreases average transport bandwidth needed to transfer one frame (the whole line is read from sensor but only ROI part is sent)
A8: ROI Height | B8: 1216 | C8: [count] | D8: 2 | E8: 1216 | F8: XI_PRM_HEIGHT | G8: ROI in Y direction decreases frame readout time (decreases number of lines that need to be read out before going to next frame)
A9: Exp Time | B9: 19 | C9: [us] | D9: =B23 -> 19 | E9: 30000000 | F9: XI_PRM_EXPOSURE
A10: Transport Bit Depth | B10: 8 | C10: [count] | D10: 8 | E10: 16 | F10: XI_PRM_OUTPUT_DATA_BIT_DEPTH
A11: Troughput Limit | B11: 390 | C11: [MB/s] | D11: =(10000000+(9375000/(65535*B8))*B8*B7*B10)/1000000 -> 12.21560998 | E11: 1000 | F11: XI_PRM_LIMIT_BANDWIDTH | G11: Adjusts Line Period (it affects the granularity of exposure time)
A13: Results
A14: Frame | F14: Calculations | K14: Register Presets
A15: Pixel Count | B15: =B8*B7/1000000 -> 2.354176 | C15: [Mpix] | F15: bit depth number | G15: =(B4-8)/2 -> 1 | H15: [count] | K15: Channel Count | M15: 8 | N15: 4 | O15: 2
A16: Image Size | B16: =B7*B8/8*B10/1000000 -> 2.354176 | C16: [MBytes] | F16: channel count log | G16: =LOG(B6,2) -> 3 | H16: [count] | J16: 10bit | K16: Normal | L16: HMAX | M16: 360 | N16: 720 | O16: 1440
A17: Line Period | B17: 4.964102564 | C17: [us] | F17: HMAX reg min | G17: =INDIRECT(ADDRESS(G15*2+14,16-G16)) -> 360 | H17: [count]
A18: Frame Time | B18: =G19*B17/1000 -> 6.224984615 | C18: [ms] | F18: H period min | G18: =(1/75000000)*1000000*G17 -> 4.8 | H18: [us] | J18: 12bit | K18: Normal | L18: HMAX | M18: 462 | N18: 924 | O18: 1848
A19: Max FPS | B19: =1000/B18 -> 160.6429673 | C19: [count] | F19: VMAX | G19: =MAX(ROUND((((B9-13.73)/B17)+13), 0), B8+38+(IF(B5="2x1",-2,0)+IF(B5="2x2",-2,0))) -> 1254 | H19: [count]
A20: Average Transfer Speed | B20: =B16/B18*1000 -> 378.1818182 | C20: [MB/s] | F20: FOT | G20: =10*B17 -> 49.64102564 | H20: [us]
F21: Readout Time | G21: =B17*B8/1000 -> 6.036348718 | H21: [ms]
A22: Exposure times | F22: Interface max | G22: 390 | H22: [MB/s]
A23: Min Exposure Time | B23: =ROUND(B17+13.73, 0) -> 19 | C23: [us]
A24: Actual Exposure Time | B24: =((ROUND((B9-13.73)/B17,0)*B17)+13.73) -> 18.69410256 | C24: [us]
A26: Transport
A27: Link Throughput | B27: =B15*B10/8/G21*1000 -> 390 | C27: [MB/s] | D27: =IF((B27>G22), "Throughput is higher than camera family data interface capability", "") -> 

Sheet IMX252
G1: Note
A2: Camera Model | B2: MC031CG-SY | G2: xiC Family, 3.1 MPix, Color model
A3: Setting | B3: Value | C3: Units | D3: min | E3: max | F3: xiApi parameter | G3: Note
A4: Sensor Bit Depth | B4: 8 | C4: [count] | D4: 8 | E4: 12 | F4: XI_PRM_SENSOR_DATA_BIT_DEPTH | G4: IMX252 supports 8; 10 and 12 bit depth
A5: Binning | B5: 1x1 | F5: XI_PRM_BINNING_VERTICAL; XI_PRM_BINNING_HORIZONTAL | G5: Only Mono IMX252 supports Binning
A6: Decimation | B6: 1x1 | F6: XI_PRM_DECIMATION_VERTICAL; XI_PRM_DECIMATION_HORIZONTAL | G6: Binning/Decimation: vertical x horizontal
A7: Channel Count | B7: 16 | C7: [count] | D7: 4 | E7: 16 | F7: XI_PRM_SENSOR_OUTPUT_CHANNEL_COUNT | G7: IMX252 supports 4; 8; or 16 channels
A8: ROI Width | B8: 2064 | C8: [count] | D8: 8 | E8: 2064 | F8: XI_PRM_WIDTH | G8: ROI in X direction decreases average transport bandwidth needed to transfer one frame (the whole line is read from sensor but only ROI part is sent)
A9: ROI Height | B9: 1544 | C9: [count] | D9: 4 | E9: 1544 | F9: XI_PRM_HEIGHT | G9: ROI in Y direction decreases frame readout time (decreases number of lines that need to be read out before going to next frame)
A10: Exp Time | B10: 19 | C10: [us] | D10: =B24 -> 19 | E10: 30000000 | F10: XI_PRM_EXPOSURE
A11: Transport Bit Depth | B11: 8 | C11: [count] | D11: 8 | E11: 16 | F11: XI_PRM_OUTPUT_DATA_BIT_DEPTH
A12: Troughput Limit | B12: 390 | C12: [MB/s] | D12: =(10000000+(9375000/(65535*B9))*B9*B8*B11)/1000000 -> 12.36209659 | E12: 1000 | F12: XI_PRM_LIMIT_BANDWIDTH | G12: Adjusts Line Period (it affects the granularity of exposure time)
A14: Results
A15: Frame Transfer | F15: Calculations | K15: Register Presets
A16: Pixel Count | B16: =B9*B8/1000000 -> 3.186816 | C16: [Mpix] | F16: bit depth number | G16: =(B4-6)/2 -> 1 | H16: [count] | K16: Channel Count | M16: 16 | N16: 8 | O16: 4
A17: Image Size | B17: =B8*B9/8*B11/1000000 -> 3.186816 | C17: [MBytes] | F17: channel count log | G17: =LOG(B7,2) -> 4 | H17: [count] | J17: 8bit | K17: Normal | L17: HMAX | M17: 217 | N17: 310 | O17: 576
A18: Line Period | B18: 5.292307692 | C18: [us] | F18: HMAX reg min | G18: =INDIRECT(ADDRESS((G16*2+15)+ISNUMBER(FIND("x2",B6, 2))*1, 17-G17)) -> 217 | H18: [count] | K18: Decimation Xx2 | L18: HMAX | M18: 217 | N18: 218 | O18: 320
A19: Frame Time | B19: =G20*B18/1000 -> 8.372430769 | C19: [ms] | F19: H period min | G19: =(1/75000000)*1000000*G18 -> 2.893333333 | H19: [us] | J19: 10bit | K19: Normal | L19: HMAX | M19: 245 | N19: 380 | O19: 710
A20: Max FPS | B20: =1000/B19 -> 119.439626 | C20: [count] | F20: VMAX | G20: =MAX(ROUND((((B10-13.73)/B18)+13), 0), B9+38) -> 1582 | H20: [count] | K20: Decimation Xx2 | L20: HMAX | M20: 245 | N20: 245 | O20: 390
A21: Average Transfer Speed | B21: =B17/B19*1000 -> 380.6321113 | C21: [MB/s] | F21: FOT | G21: =10*B18 -> 52.92307692 | H21: [us] | J21: 12bit | K21: Normal | L21: HMAX | M21: 396 | N21: 444 | O21: 846
F22: Readout Time | G22: =B18*B9/1000 -> 8.171323077 | H22: [ms] | K22: Decimation Xx2 | L22: HMAX | M22: 396 | N22: 396 | O22: 456
A23: Exposure times | F23: Interface max | G23: 390 | H23: [MB/s]
A24: Min Exposure Time | B24: =ROUND(B18+13.73, 0) -> 19 | C24: [us]
A25: Actual Exposure Time | B25: =((ROUND((B10-13.73)/B18,0)*B18)+13.73) -> 19.02230769 | C25: [us]
A27: Transport
A28: Link Throughput | B28: =B16*B11/8/G22*1000 -> 390 | C28: [MB/s] | D28: =IF((B28>G23), "Throughput is higher than camera family data interface capability", "") -> 

Sheet IMX250
G1: Note
A2: Camera Model | B2: MC050CG-SY | G2: xiC Family, 5.0 MPix, Color model
A3: Setting | B3: Value | C3: Units | D3: min | E3: max | F3: xiApi parameter | G3: Note
A4: Sensor Bit Depth | B4: 8 | C4: [count] | D4: 8 | E4: 12 | F4: XI_PRM_SENSOR_DATA_BIT_DEPTH | G4: IMX250 supports 8; 10 and 12 bit depth
A5: Binning | B5: 1x1 | F5: XI_PRM_BINNING_VERTICAL; XI_PRM_BINNING_HORIZONTAL | G5: Only Mono IMX250 supports Binning
A6: Decimation | B6: 1x1 | F6: XI_PRM_DECIMATION_VERTICAL; XI_PRM_DECIMATION_HORIZONTAL | G6: Binning/Decimation: vertical x horizontal
A7: Channel Count | B7: 16 | C7: [count] | D7: 4 | E7: 16 | F7: XI_PRM_SENSOR_OUTPUT_CHANNEL_COUNT | G7: IMX250 supports 4; 8; or 16 channels
A8: ROI Width | B8: 2464 | C8: [count] | D8: 8 | E8: 2464 | F8: XI_PRM_WIDTH | G8: ROI in X direction decreases average transport bandwidth needed to transfer one frame (the whole line is read from sensor but only ROI part is sent)
A9: ROI Height | B9: 2056 | C9: [count] | D9: 4 | E9: 2056 | F9: XI_PRM_HEIGHT | G9: ROI in Y direction decreases frame readout time (decreases number of lines that need to be read out before going to next frame)
A10: Exp Time | B10: 20 | C10: [us] | D10: =B24 -> 20 | E10: 30000000 | F10: XI_PRM_EXPOSURE
A11: Transport Bit Depth | B11: 8 | C11: [count] | D11: 8 | E11: 16 | F11: XI_PRM_OUTPUT_DATA_BIT_DEPTH
A12: Troughput Limit | B12: 390 | C12: [MB/s] | D12: =(10000000+(9375000/(65535*B9))*B9*B8*B11)/1000000 -> 12.81986725 | E12: 1000 | F12: XI_PRM_LIMIT_BANDWIDTH | G12: Adjusts Line Period (it affects the granularity of exposure time)
A14: Results
A15: Frame Transfer | F15: Calculations | K15: Register Presets
A16: Pixel Count | B16: =B9*B8/1000000 -> 5.065984 | C16: [Mpix] | F16: bit depth number | G16: =(B4-6)/2 -> 1 | H16: [count] | K16: Channel Count | M16: 16 | N16: 8 | O16: 4
A17: Image Size | B17: =B8*B9/8*B11/1000000 -> 5.065984 | C17: [MBytes] | F17: channel count log | G17: =LOG(B7,2) -> 4 | H17: [count] | J17: 8bit | K17: Normal | L17: HMAX | M17: 217 | N17: 360 | O17: 676
A18: Line Period | B18: 6.317948718 | C18: [us] | F18: HMAX reg min | G18: =INDIRECT(ADDRESS((G16*2+15)+ISNUMBER(FIND("x2",B6, 2))*1, 17-G17)) -> 217 | H18: [count] | K18: Decimation Xx2 | L18: HMAX | M18: 218 | N18: 218 | O18: 368
A19: Frame Time | B19: =G20*B18/1000 -> 13.22978462 | C19: [ms] | F19: H period min | G19: =(1/75000000)*1000000*G18 -> 2.893333333 | H19: [us] | J19: 10bit | K19: Normal | L19: HMAX | M19: 245 | N19: 440 | O19: 835
A20: Max FPS | B20: =1000/B19 -> 75.58702043 | C20: [count] | F20: VMAX | G20: =MAX(ROUND((((B10-13.73)/B18)+13), 0), B9+38) -> 2094 | H20: [count] | K20: Decimation Xx2 | L20: HMAX | M20: 260 | N20: 250 | O20: 450
A21: Average Transfer Speed | B21: =B17/B19*1000 -> 382.9226361 | C21: [MB/s] | F21: FOT | G21: =10*B18 -> 63.17948718 | H21: [us] | J21: 12bit | K21: Normal | L21: HMAX | M21: 396 | N21: 519 | O21: 996
F22: Readout Time | G22: =B18*B9/1000 -> 12.98970256 | H22: [ms] | K22: Decimation Xx2 | L22: HMAX | M22: 396 | N22: 396 | O22: 534
A23: Exposure times | F23: Interface max | G23: 390 | H23: [MB/s]
A24: Min Exposure Time | B24: =ROUND(B18+13.73, 0) -> 20 | C24: [us]
A25: Actual Exposure Time | B25: =((ROUND((B10-13.73)/B18,0)*B18)+13.73) -> 20.04794872 | C25: [us]
A27: Transport
A28: Link Throughput | B28: =B16*B11/8/G22*1000 -> 390 | C28: [MB/s] | D28: =IF((B28>G23), "Throughput is higher than camera family data interface capability", "") -> 

Sheet IMX255
G1: Note
A2: Camera Model | B2: MC089CG-SY | G2: xiC Family, 8.9 MPix, Color model
A3: Setting | B3: Value | C3: Units | D3: min | E3: max | F3: xiApi parameter | G3: Note
A4: Sensor Bit Depth | B4: 8 | C4: [count] | D4: 8 | E4: 12 | F4: XI_PRM_SENSOR_DATA_BIT_DEPTH | G4: IMX255 supports 8; 10 and 12 bit depth
A5: Binning | B5: 1x1 | F5: XI_PRM_BINNING_VERTICAL; XI_PRM_BINNING_HORIZONTAL | G5: Only Mono IMX255 supports Binning
A6: Decimation | B6: 1x1 | F6: XI_PRM_DECIMATION_VERTICAL; XI_PRM_DECIMATION_HORIZONTAL | G6: Binning/Decimation: vertical x horizontal
A7: Channel Count | B7: 16 | C7: [count] | D7: 4 | E7: 16 | F7: XI_PRM_SENSOR_OUTPUT_CHANNEL_COUNT | G7: IMX255 supports 4; 8; or 16 channels
A8: ROI Width | B8: 4112 | C8: [count] | D8: 8 | E8: 4112 | F8: XI_PRM_WIDTH | G8: ROI in X direction decreases average transport bandwidth needed to transfer one frame (the whole line is read from sensor but only ROI part is sent)
A9: ROI Height | B9: 2176 | C9: [count] | D9: 4 | E9: 2176 | F9: XI_PRM_HEIGHT | G9: ROI in Y direction decreases frame readout time (decreases number of lines that need to be read out before going to next frame)
A10: Exp Time | B10: 25 | C10: [us] | D10: =B24 -> 25 | E10: 30000000 | F10: XI_PRM_EXPOSURE
A11: Transport Bit Depth | B11: 8 | C11: [count] | D11: 8 | E11: 16 | F11: XI_PRM_OUTPUT_DATA_BIT_DEPTH
A12: Troughput Limit | B12: 390 | C12: [MB/s] | D12: =(10000000+(9375000/(65535*B9))*B9*B8*B11)/1000000 -> 14.70588235 | E12: 1000 | F12: XI_PRM_LIMIT_BANDWIDTH | G12: Adjusts Line Period (it affects the granularity of exposure time)
A14: Results
A15: Frame Transfer | F15: Calculations | K15: Register Presets
A16: Pixel Count | B16: =B9*B8/1000000 -> 8.947712 | C16: [Mpix] | F16: bit depth number | G16: =(B4-6)/2 -> 1 | H16: [count] | K16: Channel Count | M16: 16 | N16: 8 | O16: 4
A17: Image Size | B17: =B8*B9/8*B11/1000000 -> 8.947712 | C17: [MBytes] | F17: channel count log | G17: =LOG(B7,2) -> 4 | H17: [count] | J17: 8bit | K17: Normal | L17: HMAX | M17: 355 | N17: 568 | O17: 1092
A18: Line Period | B18: 10.54358974 | C18: [us] | F18: HMAX reg min | G18: =INDIRECT(ADDRESS((G16*2+15)+ISNUMBER(FIND("x2",B6, 2))+ISNUMBER(FIND("x2",B5, 2)), 17-G17)) -> 355 | H18: [count] | K18: Decimation Xx2 | L18: HMAX | M18: 356 | N18: 356 | O18: 576
A19: Frame Time | B19: =G20*B18/1000 -> 23.34350769 | C19: [ms] | F19: H period min | G19: =(1/75000000)*1000000*G18 -> 4.733333333 | H19: [us] | J19: 10bit | K19: Normal | L19: HMAX | M19: 375 | N19: 700 | O19: 1355
A20: Max FPS | B20: =1000/B19 -> 42.8384634 | C20: [count] | F20: VMAX | G20: =MAX(ROUND((((B10-14.26)/B18)+13), 0), B9+38) -> 2214 | H20: [count] | K20: Decimation Xx2 | L20: HMAX | M20: 375 | N20: 380 | O20: 710
A21: Average Transfer Speed | B21: =B17/B19*1000 -> 383.3062331 | C21: [MB/s] | F21: FOT | G21: =10*B18 -> 105.4358974 | H21: [us] | J21: 12bit | K21: Normal | L21: HMAX | M21: 522 | N21: 831 | O21: 1614
F22: Readout Time | G22: =B18*B9/1000 -> 22.94285128 | H22: [ms] | K22: Decimation Xx2 | L22: HMAX | M22: 522 | N22: 522 | O22: 846
A23: Exposure times | F23: Interface max | G23: 390 | H23: [MB/s]
A24: Min Exposure Time | B24: =ROUND(B18+14.26, 0) -> 25 | C24: [us]
A25: Actual Exposure Time | B25: =((ROUND((B10-14.26)/B18,0)*B18)+14.26) -> 24.80358974 | C25: [us]
A27: Transport
A28: Link Throughput | B28: =B16*B11/8/G22*1000 -> 390 | C28: [MB/s] | D28: =IF((B28>G23), "Throughput is higher than camera family data interface capability", "") -> 

Sheet IMX253
G1: Note
A2: Camera Model | B2: MC124CG-SY | G2: xiC Family, 12.4 MPix, Color model
A3: Setting | B3: Value | C3: Units | D3: min | E3: max | F3: xiApi parameter | G3: Note
A4: Sensor Bit Depth | B4: 8 | C4: [count] | D4: 8 | E4: 12 | F4: XI_PRM_SENSOR_DATA_BIT_DEPTH | G4: IMX253 supports 8; 10 and 12 bit depth
A5: Binning | B5: 1x1 | F5: XI_PRM_BINNING_VERTICAL; XI_PRM_BINNING_HORIZONTAL | G5: Only Mono IMX253 supports Binning
A6: Decimation | B6: 1x1 | F6: XI_PRM_DECIMATION_VERTICAL; XI_PRM_DECIMATION_HORIZONTAL | G6: Binning/Decimation: vertical x horizontal
A7: Channel Count | B7: 16 | C7: [count] | D7: 4 | E7: 16 | F7: XI_PRM_SENSOR_OUTPUT_CHANNEL_COUNT | G7: IMX253 supports 4; 8; or 16 channels
A8: ROI Width | B8: 4112 | C8: [count] | D8: 8 | E8: 4112 | F8: XI_PRM_WIDTH | G8: ROI in X direction decreases average transport bandwidth needed to transfer one frame (the whole line is read from sensor but only ROI part is sent)
A9: ROI Height | B9: 3008 | C9: [count] | D9: 4 | E9: 3008 | F9: XI_PRM_HEIGHT | G9: ROI in Y direction decreases frame readout time (decreases number of lines that need to be read out before going to next frame)
A10: Exp Time | B10: 25 | C10: [us] | D10: =B24 -> 25 | E10: 30000000 | F10: XI_PRM_EXPOSURE
A11: Transport Bit Depth | B11: 8 | C11: [count] | D11: 8 | E11: 16 | F11: XI_PRM_OUTPUT_DATA_BIT_DEPTH
A12: Troughput Limit | B12: 390 | C12: [MB/s] | D12: =(10000000+(9375000/(65535*B9))*B9*B8*B11)/1000000 -> 14.70588235 | E12: 1000 | F12: XI_PRM_LIMIT_BANDWIDTH | G12: Adjusts Line Period (it affects the granularity of exposure time)
A14: Results
A15: Frame Transfer | F15: Calculations | K15: Register Presets
A16: Pixel Count | B16: =B9*B8/1000000 -> 12.368896 | C16: [Mpix] | F16: bit depth number | G16: =(B4-6)/2 -> 1 | H16: [count] | K16: Channel Count | M16: 16 | N16: 8 | O16: 4
A17: Image Size | B17: =B8*B9/8*B11/1000000 -> 12.368896 | C17: [MBytes] | F17: channel count log | G17: =LOG(B7,2) -> 4 | H17: [count] | J17: 8bit | K17: Normal | L17: HMAX | M17: 355 | N17: 568 | O17: 1092
A18: Line Period | B18: 10.54358974 | C18: [us] | F18: HMAX reg min | G18: =INDIRECT(ADDRESS((G16*2+15)+ISNUMBER(FIND("x2",B6, 2))+ISNUMBER(FIND("x2",B5, 2)), 17-G17)) -> 355 | H18: [count] | K18: Decimation Xx2 | L18: HMAX | M18: 355 | N18: 356 | O18: 576
A19: Frame Time | B19: =G20*B18/1000 -> 32.11577436 | C19: [ms] | F19: H period min | G19: =(1/75000000)*1000000*G18 -> 4.733333333 | H19: [us] | J19: 10bit | K19: Normal | L19: HMAX | M19: 375 | N19: 700 | O19: 1355
A20: Max FPS | B20: =1000/B19 -> 31.13734668 | C20: [count] | F20: VMAX | G20: =MAX(ROUND((((B10-14.26)/B18)+13), 0), B9+38) -> 3046 | H20: [count] | K20: Decimation Xx2 | L20: HMAX | M20: 375 | N20: 380 | O20: 710
A21: Average Transfer Speed | B21: =B17/B19*1000 -> 385.1346028 | C21: [MB/s] | F21: FOT | G21: =10*B18 -> 105.4358974 | H21: [us] | J21: 12bit | K21: Normal | L21: HMAX | M21: 522 | N21: 831 | O21: 1614
F22: Readout Time | G22: =B18*B9/1000 -> 31.71511795 | H22: [ms] | K22: Decimation Xx2 | L22: HMAX | M22: 522 | N22: 522 | O22: 846
A23: Exposure times | F23: Interface max | G23: 390 | H23: [MB/s]
A24: Min Exposure Time | B24: =ROUND(B18+14.26, 0) -> 25 | C24: [us]
A25: Actual Exposure Time | B25: =((ROUND((B10-14.26)/B18,0)*B18)+14.26) -> 24.80358974 | C25: [us]
A27: Transport
A28: Link Throughput | B28: =B16*B11/8/G22*1000 -> 390 | C28: [MB/s] | D28: =IF((B28>G23), "Throughput is higher than camera family data interface capability", "") -> 

Sheet GSENSE2020
G1: Note
A2: Camera Model | B2: CB042CG-GP | G2: xiB Family, 4.2 MPix, Color model
A3: Setting | B3: Value | C3: Units | D3: min | E3: max | F3: xiApi parameter | G3: Note
A4: Shutter type | B4: Rolling | F4: XI_PRM_SHUTTER_TYPE
A5: Sensor Bit Depth | B5: 12 | C5: [count] | D5: 12 | E5: 12 | F5: XI_PRM_SENSOR_DATA_BIT_DEPTH
A7: Binning | B7: 1x1 | F7: XI_PRM_BINNING_VERTICAL; XI_PRM_BINNING_HORIZONTAL | G7: Binning: vertical x horizontal
A8: ROI Width | B8: 2048 | C8: [count] | D8: 8 | E8: 2048 | F8: XI_PRM_WIDTH | G8: ROI in X direction decreases average transport bandwidth needed to transfer one frame (the whole line is read from sensor but only ROI part is sent)
A9: ROI Height | B9: 2048 | C9: [count] | D9: 2 | E9: 2048 | F9: XI_PRM_HEIGHT | G9: ROI in Y direction decreases frame readout time (decreases number of lines that need to be read out before going to next frame)
A10: Exp Time | B10: 8 | C10: [us] | D10: 8 | E10: 30000000 | F10: XI_PRM_EXPOSURE
A11: Transport Bit Depth | B11: 8 | C11: [count] | D11: 8 | E11: 16 | F11: XI_PRM_OUTPUT_DATA_BIT_DEPTH
A12: Troughput Limit | B12: 1300 | C12: [MB/s] | D12: 27.29272213 | E12: 2000 | F12: XI_PRM_LIMIT_BANDWIDTH | G12: Adjusts Line Period
A15: Results
A16: Frame Transfer | F16: Calculations
A17: Pixel Count | B17: =B9*B8/1000000 -> 4.194304 | C17: [Mpix]
A18: Image Size | B18: =(B17*B11/8)*G20 -> 8.388608 | C18: [MBytes] | F18: T_clk_seq | G18: =1/(600*1000000/12)*1000000 -> 0.02 | H18: [us]
A19: Line Period | B19: 10.68 | C19: [us] | F19: SI_FOT | G19: =ISNUMBER(FIND("Global",B4,1))*12*B19 -> 0 | H19: [us]
A20: Frame Time | B20: =MAX(G23+G19/1000,B26/1000) -> 21.87264 | C20: [ms] | F20: Data_mult | G20: =ISNUMBER(FIND("Global",B4,1))*2+2 -> 2
A21: Max FPS | B21: =1000/B20 -> 45.71921816 | C21: [count] | F21: Line Period min | G21: 10.68 | H21: [us]
A22: Average Transfer Speed | B22: =B18/B20*1000 -> 383.5205993 | C22: [MB/s] | F22: Line Period max | G22: =(1+ISNUMBER(FIND("2x2",B7,1)))*16383*12/830 -> 236.8626506 | H22: [us]
F23: Readout Time | G23: =(ISNUMBER(FIND("Global",B4,1))+1)*B9*B19/1000 -> 21.87264 | H23: [ms]
A24: Exposure times | F24: Interface max | G24: 1300 | H24: [MB/s]
A25: Min Exposure Time | B25: =D10 -> 8 | C25: [us]
A26: Actual Exposure Time | B26: =B10 -> 8 | C26: [us]
A28: Transport
A29: Link Throughput | B29: =B18/G23*1000 -> 383.5205993 | C29: [MB/s] | D29: =IF((B29>G24), "Throughput is higher than camera family data interface capability", "") -> 
